bitfinex-derivatives/quotes_BTCF0:USTF0_20250117
["timestamp","ask_amount","ask_price","bid_price","bid_amount"]
[1737143901318,0.5199043,105860.0,105850.0,1.09699982]
[1737143902312,0.0118643,105860.0,105850.0,1.09699982]
[1737143902516,0.26119519,105880.0,105870.0,0.047192]
[1737143902817,0.21400319,105880.0,105870.0,0.047192]
[1737143903224,0.21400319,105880.0,105870.0,0.407992]
[1737143903609,0.21400319,105880.0,105870.0,0.79574125]
[1737143903909,0.21400319,105880.0,105870.0,0.87454125]
[1737143906412,0.21400319,105880.0,105870.0,0.708363]
[1737143906711,0.22535055,105880.0,105870.0,0.708363]
[1737143907019,0.58615055,105880.0,105870.0,0.221571]
[1737143908430,0.58615055,105880.0,105870.0,0.3878027]
[1737143909814,0.67211822,105880.0,105870.0,0.1662317]
[1737143910809,0.58615055,105880.0,105870.0,0.1662317]
[1737143911416,0.67211822,105880.0,105870.0,0.1662317]
[1737143911615,0.67211822,105880.0,105870.0,0.09096051]
[1737143912219,0.58615055,105880.0,105870.0,0.08143051]
[1737143912429,0.67211822,105880.0,105870.0,0.08143051]
[1737143912728,0.047192,105870.0,105860.0,0.221571]
[1737143912912,0.49395967,105870.0,105860.0,0.221571]
[1737143913917,0.49395967,105870.0,105860.0,0.76979862]
[1737143915022,0.49395967,105870.0,105860.0,0.92727769]
[1737143916521,0.57992734,105870.0,105860.0,0.92727769]
[1737143917617,0.49395967,105870.0,105860.0,0.92727769]
[1737143918121,0.57992734,105870.0,105860.0,0.92727769]
[1737143918320,0.49395967,105870.0,105860.0,0.92727769]
[1737143918521,0.57992734,105870.0,105860.0,0.92727769]
[1737143919028,0.49395967,105870.0,105860.0,0.92727769]
[1737143919820,0.57992734,105870.0,105860.0,0.92727769]
[1737143920032,0.66752734,105870.0,105860.0,0.92727769]
[1737143921017,0.58155967,105870.0,105860.0,0.92727769]
[1737143921214,0.49395967,105870.0,105860.0,0.92727769]
[1737143921424,0.57992734,105870.0,105860.0,0.88273953]
[1737143922928,0.57992734,105870.0,105860.0,0.16248185]
[1737143923130,0.047201,105850.0,105840.0,0.77004558]
[1737143923430,0.85476867,105850.0,105840.0,0.77004558]
[1737143923623,0.047207,105840.0,105820.0,1.18440235]
[1737143923823,0.408001,105850.0,105840.0,0.047205]
[1737143924023,0.13316867,105850.0,105830.0,0.44676767]
[1737143924225,0.408001,105850.0,105840.0,0.086]
[1737143925518,0.13316867,105850.0,105840.0,0.133205]
[1737143926120,0.047201,105850.0,105840.0,0.133205]
[1737143926930,0.047201,105850.0,105840.0,0.494005]
[1737143927118,0.13316567,105860.0,105840.0,0.494005]
[1737143927119,0.047198,105860.0,105850.0,0.0472]
[1737143927320,0.047198,105860.0,105850.0,0.2055]
[1737143927724,0.13316567,105860.0,105850.0,0.2055]
[1737143928338,0.047198,105860.0,105850.0,0.2055]
[1737143928530,0.05818052,105860.0,105850.0,0.2055]
[1737143928831,0.05818052,105860.0,105850.0,0.205501]
[1737143929828,0.05818052,105860.0,105850.0,0.1583]
[1737143932426,0.14414819,105860.0,105850.0,0.1583]
[1737143934938,0.50494819,105860.0,105850.0,0.1583]
[1737143936038,0.50494819,105860.0,105850.0,0.0807]
[1737143936333,0.63811386,105860.0,105840.0,0.3608]
[1737143936526,0.54116967,105850.0,105830.0,0.32256359]
[1737143936726,0.49397267,105840.0,105830.0,0.32256359]
[1737143937629,0.04721,105830.0,105820.0,0.9155756]
[1737143937830,0.13317767,105830.0,105820.0,0.9155756]
[1737143938438,0.04721,105830.0,105820.0,0.9627896]
[1737143938641,0.047206,105840.0,105830.0,0.047205]
[1737143938938,0.05818152,105860.0,105840.0,0.047205]
[1737143939133,0.05818152,105860.0,105850.0,0.5237]
[1737143939536,0.05818152,105860.0,105850.0,0.8845]
[1737143939942,0.05818152,105860.0,105850.0,0.5237]
[1737143940441,0.14414919,105860.0,105850.0,0.5237]
[1737143948439,0.22914919,105860.0,105850.0,0.1629]
[1737143948646,0.58994919,105860.0,105850.0,0.1629]
[1737143949243,0.58994919,105860.0,105850.0,0.49729054]
[1737143950637,0.22914919,105860.0,105850.0,0.49729054]
[1737143951541,0.50494919,105860.0,105850.0,0.49729054]
[1737143953751,0.50494919,105860.0,105850.0,0.41559054]
[1737143957140,0.14414919,105860.0,105850.0,0.41559054]
[1737143957549,0.50494919,105860.0,105850.0,0.41559054]
[1737143958154,0.14414919,105860.0,105850.0,0.0812]
[1737143960353,0.14414919,105860.0,105850.0,0.41578053]
[1737143962141,0.14414919,105860.0,105850.0,0.0812]
[1737143965758,0.14414919,105860.0,105850.0,0.37547479]
[1737143966459,0.22924919,105860.0,105850.0,0.37547479]
[1737143967350,0.14414919,105860.0,105850.0,0.37547479]
[1737143967546,0.05818152,105860.0,105850.0,0.78347579]
[1737143967761,0.05818152,105860.0,105850.0,0.86487579]
[1737143967957,0.05818152,105860.0,105850.0,0.94467579]
[1737143969552,0.05818152,105860.0,105850.0,1.29438331]
[1737143971365,0.14414919,105860.0,105850.0,1.29438331]
[1737143971665,0.14414919,105860.0,105850.0,0.93358331]
[1737143972049,0.14414919,105860.0,105850.0,1.24718231]
[1737143972249,0.14414919,105860.0,105850.0,1.63765791]
[1737143973260,0.05818152,105860.0,105850.0,1.63765791]
[1737143973452,0.05818152,105860.0,105850.0,2.08361719]
[1737143974063,0.05818152,105860.0,105850.0,1.72281719]
[1737143974665,0.14414919,105860.0,105850.0,1.72281719]
[1737143975360,0.05818152,105860.0,105850.0,1.27685791]
[1737143977169,0.14414919,105860.0,105850.0,1.27685791]
[1737143977365,0.14414919,105860.0,105850.0,1.03445791]
[1737143977864,0.14414919,105860.0,105850.0,1.39525791]
[1737143977865,0.05818152,105860.0,105850.0,1.39525791]
[1737143978062,0.05818152,105860.0,105850.0,1.12025791]
[1737143978969,0.14414919,105860.0,105850.0,1.12025791]
[1737143979172,0.14414919,105860.0,105850.0,1.56621719]
[1737143980373,0.14414919,105860.0,105850.0,1.12025791]
[1737143982177,0.14414919,105860.0,105850.0,0.38007479]
[1737143982370,0.14414919,105860.0,105850.0,0.70227579]
[1737143982371,0.01098252,105860.0,105850.0,0.70227579]
[1737143982571,0.16539572,105880.0,105850.0,0.73947479]
[1737143982779,0.13315967,105870.0,105860.0,0.079]
[1737143983277,0.047192,105870.0,105860.0,0.079]
[1737143983871,0.047192,105870.0,105860.0,0.4398]
[1737143984263,0.047192,105870.0,105860.0,1.09570226]
[1737143985576,0.047192,105870.0,105860.0,1.18086154]
[1737143985872,0.047192,105870.0,105860.0,1.26496154]
[1737143987075,0.047192,105870.0,105860.0,0.81900226]
[1737143988386,0.047192,105870.0,105860.0,1.20947786]
[1737143989290,0.047192,105870.0,105860.0,0.45737479]
[1737143989591,0.13315967,105870.0,105860.0,0.45737479]
[1737143991195,0.13315967,105870.0,105860.0,0.37327479]
[1737143991397,0.21695967,105870.0,105860.0,0.37327479]
[1737143992389,0.21695967,105870.0,105860.0,0.73407479]
[1737143992582,0.45091955,105880.0,105860.0,0.86723846]
[1737143992789,0.13730755,105880.0,105870.0,0.494092]
[1737143992990,0.09011955,105880.0,105870.0,0.577592]
[1737143993396,0.17608722,105880.0,105870.0,0.577592]
[1737143993994,0.17608722,105880.0,105870.0,0.216792]
[1737143994489,0.22327422,105880.0,105870.0,0.51106679]
[1737143995089,0.22327422,105880.0,105870.0,0.87186679]
[1737143995693,0.22327422,105880.0,105870.0,0.51106679]
[1737143996390,0.22327422,105880.0,105870.0,0.87186679]
[1737143996597,0.22327422,105880.0,105870.0,1.22920068]
[1737143996796,0.22327422,105880.0,105870.0,0.86840068]
[1737143997698,0.22327422,105880.0,105870.0,1.22920068]
[1737143997995,0.22327422,105880.0,105870.0,1.22919568]
[1737143998198,0.22327422,105880.0,105870.0,0.86839568]
[1737143998598,0.22327422,105880.0,105870.0,1.25887128]
[1737143999300,0.22327422,105880.0,105870.0,1.61967128]
[1737143999800,0.22327422,105880.0,105870.0,1.26233739]
[1737143999801,0.17608722,105880.0,105870.0,1.26233739]
[1737144001401,0.17608722,105880.0,105870.0,1.61975978]
[1737144002896,0.09011955,105880.0,105870.0,1.61975978]
[1737144003297,0.17608722,105880.0,105870.0,1.61975978]
[1737144003498,0.67003789,105880.0,105870.0,1.04217278]
[1737144003695,0.67003789,105880.0,105870.0,0.35742239]
[1737144003999,0.67003789,105880.0,105830.0,1.16412136]
[1737144004000,0.0472,105840.0,105830.0,1.16412136]
[1737144004193,1.08761534,105840.0,105830.0,0.96918326]
[1737144004393,1.08761534,105840.0,105830.0,0.80368607]
[1737144004394,1.38761534,105840.0,105830.0,0.80368607]
[1737144004594,1.38761534,105840.0,105830.0,0.73872607]
[1737144004791,1.38761534,105840.0,105830.0,0.03010751]
[1737144005003,1.38761534,105840.0,105830.0,0.23410016]
[1737144005204,1.08761534,105840.0,105830.0,0.23410016]
[1737144005502,1.08761534,105840.0,105830.0,0.17669832]
[1737144005702,1.38761534,105840.0,105830.0,0.17669832]
[1737144006004,0.094428,105820.0,105790.0,0.650921]
[1737144006204,0.08596767,105800.0,105790.0,0.650921]
[1737144006407,0.13318567,105800.0,105790.0,0.2429]
[1737144007892,0.44676767,105820.0,105790.0,0.68966767]
[1737144008204,0.40801,105820.0,105800.0,0.49398467]
[1737144008402,0.13317767,105820.0,105810.0,0.3608]
[1737144008592,0.49397367,105830.0,105810.0,0.408014]
[1737144008799,0.49397367,105830.0,105820.0,0.2432]
[1737144010209,0.3608,105830.0,105820.0,0.290409]
[1737144010405,0.01040574,105830.0,105820.0,0.73717667]
[1737144010706,0.047198,105850.0,105840.0,0.0472]
[1737144011311,0.047198,105850.0,105830.0,0.08596767]
[1737144011509,0.49396567,105850.0,105830.0,0.047203]
[1737144012105,0.49396567,105850.0,105830.0,0.408003]
[1737144012810,0.08596767,105840.0,105830.0,0.408003]
[1737144013004,0.49396767,105840.0,105820.0,0.290409]
[1737144013205,0.13317267,105830.0,105820.0,0.2432]
[1737144013411,0.49397267,105830.0,105820.0,0.2432]
[1737144015316,0.3608,105830.0,105820.0,0.37637667]
[1737144015508,0.49396967,105840.0,105820.0,0.73717667]
[1737144015715,0.408002,105840.0,105820.0,0.37637667]
[1737144016013,0.408002,105840.0,105820.0,0.73717667]
[1737144016402,0.49396967,105840.0,105820.0,0.37637667]
[1737144016602,0.49396967,105840.0,105820.0,0.73717667]
[1737144016800,0.49396967,105840.0,105820.0,0.290409]
[1737144017203,0.08596767,105830.0,105820.0,0.290409]
[1737144017406,0.49396967,105840.0,105820.0,0.290409]
[1737144018812,0.54117367,105840.0,105820.0,0.2432]
[1737144019309,0.49396967,105840.0,105820.0,0.37637667]
[1737144019502,0.094405,105840.0,105820.0,0.73717667]
[1737144019701,0.047202,105840.0,105820.0,0.73717667]
[1737144019906,0.047202,105840.0,105820.0,0.73717467]
[1737144021221,0.094406,105840.0,105820.0,0.73717467]
[1737144021409,0.047202,105840.0,105820.0,0.78438067]
[1737144021601,0.555072,105860.0,105840.0,0.0472]
[1737144021913,0.64103967,105860.0,105850.0,0.1637]
[1737144022217,1.00183967,105860.0,105850.0,0.1637]
[1737144022409,0.64103967,105860.0,105850.0,0.1637]
[1737144022710,1.00183967,105860.0,105850.0,0.1637]
[1737144023613,1.01497479,105860.0,105850.0,0.1637]
[1737144024006,0.40541512,105860.0,105850.0,0.65766367]
[1737144024204,0.16088,105860.0,105850.0,0.65766367]
[1737144024612,0.48741305,105880.0,105850.0,0.65766367]
[1737144024912,0.21258072,105880.0,105860.0,0.407989]
[1737144025108,0.13315467,105870.0,105850.0,0.571695]
[1737144025305,0.13315967,105860.0,105850.0,0.571695]
[1737144025507,0.047192,105860.0,105850.0,0.571695]
[1737144027216,0.13315967,105860.0,105850.0,0.5245]
[1737144027420,0.047192,105860.0,105850.0,0.5245]
[1737144027624,0.047192,105860.0,105850.0,0.571696]
[1737144027921,0.047192,105860.0,105850.0,0.641096]
[1737144028315,0.13315967,105860.0,105850.0,0.5939]
[1737144029410,0.047192,105860.0,105850.0,0.641096]
[1737144029714,0.047192,105860.0,105850.0,0.72706367]
[1737144029915,0.047192,105860.0,105850.0,0.641096]
[1737144030114,0.06046017,105860.0,105850.0,0.641096]
[1737144031113,0.06046017,105860.0,105850.0,0.72706367]
[1737144032117,0.14642784,105860.0,105850.0,0.2331]
[1737144032316,0.14642784,105860.0,105840.0,0.3608]
[1737144032317,0.047196,105850.0,105840.0,0.3608]
[1737144032620,0.0472,105840.0,105830.0,0.55692124]
[1737144033120,0.13316767,105840.0,105830.0,0.50971724]
[1737144033707,0.13316767,105840.0,105830.0,0.14891724]
[1737144033921,0.49396767,105840.0,105830.0,0.14891724]
[1737144034918,0.49396767,105840.0,105830.0,0.07311724]
[1737144035119,0.49396767,105840.0,105830.0,0.0717]
[1737144039320,0.56686767,105840.0,105830.0,0.0717]
[1737144040425,1.07470767,105840.0,105830.0,0.0717]
[1737144040725,0.047227,105790.0,105770.0,0.3608]
[1737144040934,0.13319967,105780.0,105770.0,0.3608]
[1737144041428,0.047232,105780.0,105770.0,0.3608]
[1737144041726,0.49399567,105790.0,105770.0,0.49400067]
[1737144042021,0.408028,105790.0,105770.0,0.49400067]
[1737144042217,0.49399567,105790.0,105770.0,0.49400067]
[1737144042822,0.49399567,105790.0,105770.0,0.408033]
[1737144044035,0.13319967,105780.0,105770.0,0.3608]
[1737144044520,0.21916734,105780.0,105770.0,0.3608]
[1737144044721,0.57996734,105780.0,105760.0,0.1483]
[1737144044927,0.49400367,105770.0,105760.0,0.1483]
[1737144045430,0.047245,105760.0,105740.0,0.0014184]
[1737144045626,0.49401267,105750.0,105740.0,0.0014184]
[1737144045930,0.94078034,105750.0,105740.0,0.0014184]
[1737144046121,0.04725,105740.0,105730.0,0.0746]
[1737144046321,0.49401767,105740.0,105730.0,0.0746]
[1737144046523,0.047254,105730.0,105720.0,0.0717]
[1737144046725,0.13322167,105730.0,105710.0,0.482662]
[1737144046926,0.047254,105730.0,105710.0,0.56862967]
[1737144047127,0.047254,105730.0,105720.0,0.08596767]
[1737144047323,0.047254,105730.0,105710.0,0.56862967]
[1737144047525,1.00197767,105740.0,105720.0,0.047256]
[1737144047724,0.12876009,105730.0,105720.0,0.047256]
[1737144047927,1.04477009,105740.0,105720.0,0.047256]
[1737144048423,1.09202309,105740.0,105720.0,0.047256]
[1737144048626,0.12876009,105730.0,105710.0,0.482663]
[1737144048818,0.17601509,105730.0,105710.0,0.482663]
[1737144049022,0.047255,105730.0,105710.0,0.61142009]
[1737144049221,0.047255,105730.0,105710.0,0.48266]
[1737144049722,0.916011,105740.0,105720.0,0.12876009]
[1737144050026,0.50796,105740.0,105730.0,0.047254]
[1737144050226,0.50796,105740.0,105730.0,0.408054]
[1737144050625,0.50796,105740.0,105730.0,0.53681409]
[1737144050826,0.50796,105740.0,105730.0,0.60821409]
[1737144051021,0.50796,105740.0,105730.0,0.118654]
[1737144052127,0.63672009,105740.0,105730.0,0.479454]
[1737144052333,0.63672009,105740.0,105730.0,0.118654]
[1737144052521,0.68397009,105740.0,105730.0,0.0714]
[1737144052832,1.04477009,105740.0,105730.0,0.0714]
[1737144053330,1.04477009,105740.0,105710.0,0.4354]
[1737144053331,0.047259,105720.0,105710.0,0.4354]
[1737144053523,0.17601909,105720.0,105710.0,0.4354]
[1737144053934,0.047259,105720.0,105710.0,0.4354]
[1737144054235,0.047259,105720.0,105710.0,0.482663]
[1737144054527,0.047256,105730.0,105720.0,0.047257]
[1737144054730,0.86876,105740.0,105720.0,0.121257]
[1737144054928,0.68397109,105740.0,105730.0,0.047254]
[1737144055229,1.04477109,105740.0,105720.0,0.240614]
[1737144055434,1.04477109,105740.0,105720.0,0.193356]
[1737144055928,0.73122409,105740.0,105720.0,0.193356]
[1737144056129,0.047254,105730.0,105720.0,0.193356]
[1737144056523,0.17601409,105730.0,105720.0,0.193356]
[1737144057233,0.53681409,105730.0,105720.0,0.0721]
[1737144058128,0.17601409,105730.0,105720.0,0.0721]
[1737144058329,0.53681409,105730.0,105710.0,0.4354]
[1737144058530,0.047259,105720.0,105710.0,0.4354]
[1737144058738,0.047259,105720.0,105710.0,0.482663]
[1737144059435,0.17601909,105720.0,105710.0,0.482663]
[1737144060035,0.047259,105720.0,105710.0,0.482663]
[1737144060536,0.66557918,105720.0,105700.0,0.176619]
[1737144060837,0.53682309,105710.0,105700.0,0.1]
[1737144061037,0.61512309,105710.0,105700.0,0.1]
[1737144061439,0.61512309,105710.0,105700.0,0.147268]
[1737144061440,0.047263,105710.0,105700.0,0.147268]
[1737144061633,0.047263,105710.0,105700.0,0.1]
[1737144061938,0.53682009,105720.0,105710.0,0.047263]
[1737144062140,0.53682009,105720.0,105700.0,0.508066]
[1737144062333,0.12876009,105720.0,105710.0,0.3608]
[1737144062534,0.120947,105750.0,105730.0,0.047254]
[1737144062535,0.3608,105750.0,105730.0,0.047254]
[1737144062735,0.408046,105750.0,105730.0,0.40805]
[1737144062931,0.53680609,105750.0,105740.0,0.0721]
[1737144063632,0.89760609,105750.0,105740.0,0.0721]
[1737144063936,0.047253,105740.0,105720.0,0.555258]
[1737144064245,0.17601409,105730.0,105720.0,0.269158]
[1737144064442,0.17601409,105730.0,105720.0,0.2219]
[1737144064649,0.53681409,105730.0,105700.0,0.580066]
[1737144064834,0.12876009,105710.0,105700.0,0.732466]
[1737144065135,0.17602309,105710.0,105700.0,0.732466]
[1737144065330,0.047263,105710.0,105700.0,0.371666]
[1737144065532,0.17602309,105710.0,105700.0,0.3244]
[1737144065942,0.047263,105710.0,105700.0,0.3244]
[1737144066528,0.04726,105720.0,105700.0,0.86122809]
[1737144066736,0.555615,105730.0,105720.0,0.047259]
[1737144066936,0.047248,105750.0,105740.0,0.04725]
[1737144067436,0.04725,105740.0,105730.0,0.633952]
[1737144067743,0.047249,105750.0,105740.0,0.04725]
[1737144068540,0.50836,105770.0,105750.0,0.047245]
[1737144068736,0.0014188,105780.0,105760.0,0.48956009]
[1737144068935,0.4094538,105780.0,105760.0,0.17599809]
[1737144069140,0.53821389,105780.0,105750.0,0.408044]
[1737144069349,0.047238,105770.0,105750.0,0.408043]
[1737144069638,0.047241,105760.0,105750.0,0.408043]
[1737144069844,0.047238,105770.0,105760.0,0.047241]
[1737144070535,0.047241,105760.0,105750.0,0.408045]
[1737144070736,0.047245,105750.0,105740.0,0.408049]
[1737144070938,0.0486518,105780.0,105770.0,0.047236]
[1737144071137,0.17598809,105790.0,105770.0,0.3608]
[1737144071331,0.21646196,105780.0,105770.0,0.408036]
[1737144071536,0.21646196,105780.0,105770.0,0.3608]
[1737144072144,0.047235,105780.0,105770.0,0.3608]
[1737144073748,0.17599509,105780.0,105770.0,0.3608]
[1737144073944,0.3608,105780.0,105760.0,0.5116]
[1737144074143,0.3608,105780.0,105770.0,0.047236]
[1737144074144,0.047234,105780.0,105770.0,0.047236]
[1737144074346,0.047234,105780.0,105760.0,0.76059809]
[1737144074741,0.047234,105780.0,105770.0,0.3608]
[1737144074949,0.047234,105780.0,105770.0,0.047236]
[1737144075150,0.40803,105790.0,105770.0,0.17599609]
[1737144075336,0.3608,105790.0,105770.0,0.047236]
[1737144075542,0.047232,105780.0,105770.0,0.047236]
[1737144075743,0.047232,105780.0,105770.0,0.408036]
[1737144077949,0.047236,105770.0,105760.0,0.558841]
[1737144078650,0.047235,105780.0,105770.0,0.047234]
[1737144078848,0.047235,105780.0,105770.0,0.408034]
[1737144079053,1.22946696,105810.0,105770.0,0.53679409]
[1737144079054,1.15666696,105810.0,105770.0,0.53679409]
[1737144079355,0.047225,105800.0,105790.0,0.53678709]
[1737144079544,0.047225,105800.0,105790.0,0.198527]
[1737144079952,0.53678509,105800.0,105790.0,0.0788]
[1737144080146,0.047229,105790.0,105770.0,0.58402709]
[1737144080346,0.047229,105790.0,105780.0,0.0788]
[1737144080752,0.047229,105790.0,105780.0,0.486832]
[1737144080951,0.047229,105790.0,105780.0,0.61559209]
[1737144081152,0.047229,105790.0,105780.0,0.25479209]
[1737144081459,0.047229,105790.0,105780.0,0.61559209]
[1737144081755,0.047229,105790.0,105780.0,0.25479209]
[1737144082058,0.047229,105790.0,105780.0,0.126032]
[1737144082360,0.047229,105790.0,105780.0,0.61559209]
[1737144083652,0.047229,105790.0,105780.0,0.25479209]
[1737144085359,0.047229,105790.0,105780.0,0.61559209]
[1737144085660,0.047229,105790.0,105780.0,0.57256249]
[1737144086660,0.047229,105790.0,105780.0,0.21176249]
[1737144086854,0.047229,105790.0,105780.0,0.0788]
[1737144087159,0.047229,105790.0,105780.0,0.21176249]
[1737144087360,0.06767887,105800.0,105790.0,0.047227]
[1737144087661,0.047223,105800.0,105790.0,0.56795749]
[1737144088957,0.55554,105810.0,105800.0,0.047223]
[1737144089163,0.55554,105810.0,105800.0,0.13295349]
[1737144089355,0.55554,105810.0,105800.0,0.17577374]
[1737144090048,0.55554,105810.0,105800.0,0.53657374]
[1737144090049,0.50832,105810.0,105800.0,0.53657374]
[1737144090249,0.555539,105810.0,105800.0,0.53657374]
[1737144091564,0.555539,105810.0,105800.0,0.408023]
[1737144091966,0.047223,105800.0,105780.0,0.4396]
[1737144092155,0.408027,105790.0,105780.0,0.0788]
[1737144092659,0.047232,105780.0,105770.0,0.0775]
[1737144092871,0.047236,105770.0,105760.0,0.432]
[1737144093365,0.047236,105770.0,105760.0,0.3608]
[1737144094373,0.047236,105770.0,105760.0,0.53659174]
[1737144094565,0.047234,105780.0,105770.0,0.047236]
[1737144094869,0.047234,105780.0,105770.0,0.17578674]
[1737144096265,0.047234,105780.0,105770.0,0.047236]
[1737144096465,0.62765561,105790.0,105760.0,0.48935074]
[1737144096671,0.047236,105770.0,105760.0,0.408039]
[1737144098180,0.047236,105770.0,105760.0,0.53658974]
[1737144098375,0.047236,105770.0,105760.0,0.17578974]
[1737144099283,0.047236,105770.0,105760.0,0.53658974]
[1737144100875,0.047234,105780.0,105770.0,0.047236]
[1737144102088,0.49910487,105790.0,105760.0,0.83725565]
[1737144102089,0.047236,105770.0,105760.0,0.83725565]
[1737144102884,0.047236,105770.0,105760.0,0.47645565]
[1737144104089,0.047236,105770.0,105760.0,0.047239]
[1737144104292,0.047241,105760.0,105750.0,0.556743]
[1737144104790,0.047241,105760.0,105750.0,0.68529374]
[1737144105177,0.047238,105770.0,105760.0,0.047237]
[1737144105390,0.047238,105770.0,105760.0,0.53658774]
[1737144106590,0.047238,105770.0,105760.0,0.408037]
[1737144107490,0.047238,105770.0,105760.0,0.53658774]
[1737144108084,0.3608,105780.0,105770.0,0.047236]
[1737144108085,0.408036,105780.0,105770.0,0.047236]
[1737144108782,0.408036,105780.0,105770.0,0.38227181]
[1737144109193,0.408036,105780.0,105770.0,0.33503581]
[1737144112095,0.49380299,105780.0,105770.0,0.33503581]
[1737144113088,0.44656699,105780.0,105760.0,0.4680418]
[1737144113396,0.047236,105770.0,105760.0,0.4680418]
[1737144114095,0.047236,105770.0,105760.0,0.13300599]
[1737144114299,0.3608,105780.0,105760.0,0.08576699]
[1737144114595,0.408034,105780.0,105770.0,0.047236]
[1737144114997,0.408034,105780.0,105770.0,0.13300299]
[1737144115496,0.408034,105780.0,105770.0,0.047236]
[1737144115696,0.408034,105780.0,105770.0,0.38245106]
[1737144116000,0.047234,105780.0,105770.0,0.38245106]
[1737144116195,0.047234,105780.0,105770.0,0.46821805]
[1737144116593,0.408034,105780.0,105770.0,0.38245106]
[1737144116907,0.408034,105780.0,105770.0,0.047236]
[1737144118299,0.047234,105780.0,105770.0,0.047236]
[1737144118499,0.408034,105780.0,105770.0,0.38248564]
[1737144119503,0.408034,105780.0,105770.0,0.047236]
[1737144119699,0.047234,105780.0,105770.0,0.047236]
[1737144119906,0.408034,105780.0,105770.0,0.047236]
[1737144120202,0.49380099,105780.0,105770.0,0.047236]
[1737144120400,0.047238,105770.0,105760.0,0.13300699]
[1737144120599,0.047238,105770.0,105760.0,0.49380699]
[1737144122003,0.49910587,105790.0,105780.0,0.047232]
[1737144122004,0.01847787,105790.0,105780.0,0.047232]
[1737144122200,0.4319,105800.0,105780.0,0.047232]
[1737144122201,0.047224,105800.0,105790.0,0.047227]
[1737144122401,0.55554,105810.0,105800.0,0.047223]
[1737144122604,0.55554,105810.0,105800.0,0.13298999]
[1737144122795,0.55554,105810.0,105800.0,0.49378999]
[1737144122991,0.50832,105810.0,105800.0,0.49378999]
[1737144123202,0.50832,105810.0,105800.0,0.56568999]
[1737144123806,0.50832,105810.0,105800.0,1.73308016]
[1737144123807,0.555539,105810.0,105800.0,1.73308016]
[1737144124601,0.555539,105810.0,105800.0,1.52819017]
[1737144124798,1.00210599,105810.0,105800.0,1.16739017]
[1737144124999,1.07240599,105810.0,105800.0,1.16739017]
[1737144125207,1.23071236,105810.0,105800.0,1.16739017]
[1737144125402,1.31647935,105810.0,105800.0,1.16739017]
[1737144125603,1.31647935,105810.0,105800.0,0.98085564]
[1737144125803,0.047232,105780.0,105770.0,0.41179988]
[1737144126408,0.047236,105770.0,105760.0,0.63680599]
[1737144126709,0.047236,105770.0,105760.0,0.5038]
[1737144127708,0.047236,105770.0,105760.0,0.86650897]
[1737144128608,0.047236,105770.0,105760.0,0.63680799]
[1737144129199,0.047236,105770.0,105760.0,0.551041]
[1737144129602,0.047236,105770.0,105760.0,0.190241]
[1737144129807,0.408036,105770.0,105760.0,0.190241]
[1737144130026,0.047241,105760.0,105750.0,0.44458919]
[1737144130311,0.49380799,105760.0,105750.0,0.44458919]
[1737144130498,0.047245,105750.0,105740.0,0.63615543]
[1737144131608,0.047245,105750.0,105740.0,0.19156624]
[1737144132111,0.047242,105760.0,105750.0,0.047245]
[1737144132302,0.047242,105760.0,105750.0,0.13301199]
[1737144132503,0.408042,105760.0,105750.0,0.13301199]
[1737144132700,0.047242,105760.0,105750.0,0.49381199]
[1737144133007,0.047242,105760.0,105750.0,0.408045]
[1737144133206,0.047242,105760.0,105750.0,0.047245]
[1737144133404,0.3608,105760.0,105740.0,0.59088523]
[1737144133604,0.047245,105750.0,105740.0,0.63813223]
[1737144133804,0.047245,105750.0,105740.0,0.19156524]
[1737144134005,0.408045,105750.0,105740.0,0.19156524]
[1737144134208,0.49381199,105750.0,105740.0,0.0729]
[1737144134404,0.04725,105740.0,105730.0,0.44458919]
[1737144134612,0.49381699,105740.0,105730.0,0.43294282]
[1737144134909,0.49381699,105740.0,105730.0,0.22776272]
[1737144135113,0.79381699,105740.0,105710.0,0.3171129]
[1737144135310,0.49382599,105720.0,105710.0,0.3171129]
[1737144135609,0.44656699,105740.0,105710.0,0.40287989]
[1737144135805,0.047255,105730.0,105710.0,0.40287989]
[1737144136007,0.49382199,105730.0,105710.0,0.49382599]
[1737144136220,0.13302199,105730.0,105720.0,0.047259]
[1737144137216,0.047255,105730.0,105720.0,0.047259]
[1737144137405,0.13302199,105730.0,105720.0,0.047259]
[1737144138509,0.49382199,105730.0,105710.0,0.49382899]
[1737144138703,0.13302599,105720.0,105700.0,0.645867]
[1737144138923,0.13302999,105710.0,105700.0,0.285067]
[1737144139118,0.047263,105710.0,105700.0,0.285067]
[1737144139506,0.49382999,105710.0,105700.0,0.285067]
[1737144139707,0.408063,105710.0,105700.0,0.285067]
[1737144140013,0.49382999,105710.0,105700.0,0.1]
[1737144140207,0.56502999,105710.0,105700.0,0.1]
[1737144141611,0.479263,105710.0,105700.0,0.1]
[1737144141805,0.58184137,105710.0,105700.0,0.1]
[1737144142211,0.66760836,105710.0,105700.0,0.08107135]
[1737144142516,0.58184137,105710.0,105700.0,0.02275984]
[1737144145417,0.51064137,105710.0,105700.0,0.02275984]
[1737144145616,0.42487438,105710.0,105700.0,0.10125984]
[1737144145817,0.51064137,105710.0,105700.0,0.21672784]
[1737144150709,0.42487438,105710.0,105700.0,0.21672784]
[1737144151015,0.3608,105720.0,105700.0,0.21672784]
[1737144151219,0.047233,105780.0,105770.0,0.047236]
[1737144151425,0.21787364,105790.0,105780.0,0.047232]
[1737144151623,0.16922696,105790.0,105780.0,0.57956598]
[1737144151917,0.16922696,105810.0,105800.0,0.047223]
[1737144152109,0.16922696,105810.0,105800.0,0.85458999]
[1737144152809,0.72264293,105830.0,105820.0,0.047214]
[1737144153013,0.22554639,105850.0,105840.0,0.047205]
[1737144153308,0.047209,105840.0,105820.0,0.13297999]
[1737144153513,0.047209,105840.0,105820.0,0.17572793]
[1737144154214,0.408009,105840.0,105820.0,0.53652793]
[1737144154445,0.3608,105840.0,105820.0,0.53652793]
[1737144154722,0.3608,105840.0,105810.0,0.3608]
[1737144154723,0.48931493,105840.0,105810.0,0.7663835]
[1737144154917,0.047214,105820.0,105810.0,0.8136015]
[1737144155712,0.047214,105830.0,105810.0,1.15261606]
[1737144155920,0.53652893,105820.0,105810.0,0.61608313]
[1737144156423,0.46935825,105820.0,105810.0,0.61608313]
[1737144156614,0.51657225,105820.0,105810.0,0.61608313]
[1737144156811,0.047214,105820.0,105810.0,0.3608]